fUSD/lending_fUSD_20260530
["ID","MTS","AMOUNT","RATE_DAILY","PERIOD"]
[423403258,1780084793000,-500.0,0.00041205,120]
[423403260,1780084793000,-500.0,0.00041205,120]
[423403261,1780084793000,-521.31,0.00041205,120]
[423403262,1780084793000,-500.0,0.00041205,120]
[423403264,1780084793000,-500.0,0.00041205,120]
[423403265,1780084793000,-500.0,0.00041205,120]
[423403263,1780084793000,-809.88,0.00041205,120]
[423403267,1780084793000,-500.0,0.00041205,120]
[423403268,1780084793000,-3222.14,0.00041205,120]
[423403269,1780084793000,-611.37,0.00041205,120]
[423403270,1780084793000,-500.0,0.00041205,120]
[423403272,1780084793000,-500.0,0.00041205,120]
[423403271,1780084793000,-500.0,0.00041205,120]
[423403273,1780084793000,-875.27,0.00041205,120]
[423403266,1780084793000,-178.63679508,0.00041205,120]
[423403280,1780084794000,-500.0,0.00041205,120]
[423403274,1780084794000,-1163.38,0.00041205,120]
[423403276,1780084794000,-625.23,0.00041205,120]
[423403277,1780084794000,-500.0,0.00041205,120]
[423403278,1780084794000,-754.19,0.00041205,120]
[423403279,1780084794000,-500.0,0.00041205,120]
[423403281,1780084794000,-500.0,0.00041205,120]
[423403275,1780084794000,-500.0,0.00041205,120]
[423403283,1780084794000,-633.20667152,0.00041205,120]
[423403284,1780084794000,-3165.57,0.00041205,120]
[423403286,1780084794000,-1286.78,0.00041205,120]
[423403285,1780084794000,-500.0,0.00041205,120]
[423403287,1780084794000,-1622.34,0.00041205,120]
[423403288,1780084794000,-500.0,0.00041205,120]
[423403282,1780084794000,-500.0,0.00041205,120]
[423403289,1780084794000,-500.0,0.00041205,120]
[423403290,1780084795000,-500.0,0.00041205,120]
[423403291,1780084795000,-500.0,0.00041205,120]
[423403292,1780084795000,-1019.23,0.00041205,120]
[423403293,1780084795000,-500.0,0.00041205,120]
[423403294,1780084795000,-500.0,0.00041205,120]
[423403295,1780084795000,-500.0,0.00041205,120]
[423403296,1780084795000,-500.0,0.00041205,120]
[423403303,1780084795000,-500.0,0.00041205,120]
[423403298,1780084795000,-500.0,0.00041205,120]
[423403300,1780084795000,-500.0,0.00041205,120]
[423403299,1780084795000,-500.0,0.00041205,120]
[423403301,1780084795000,-500.0,0.00041205,120]
[423403302,1780084795000,-500.0,0.00041205,120]
[423403304,1780084795000,-2899.31,0.00041205,120]
[423403297,1780084795000,-500.0,0.00041205,120]
[423403306,1780084796000,-500.0,0.00041205,120]
[423403305,1780084796000,-600.0,0.00041205,120]
[423403307,1780084796000,-500.0,0.00041205,120]
[423403309,1780084796000,-555.29,0.00041205,120]
[423403308,1780084796000,-793.65,0.00041205,120]
[423403310,1780084796000,-500.0,0.00041205,120]
[423403311,1780084796000,-500.0,0.00041205,120]
[423403313,1780084796000,-500.0,0.00041205,120]
[423403314,1780084796000,-500.0,0.00041205,120]
[423403315,1780084796000,-500.0,0.00041205,120]
[423403317,1780084796000,-455.58842845,0.00041205,60]
[423403316,1780084796000,-2170.36,0.00041205,120]
[423403318,1780084796000,-500.0,0.00041205,120]
[423403312,1780084796000,-500.0,0.00041205,120]
[423403319,1780084796000,-500.0,0.00041205,120]
[423403326,1780084797000,-500.0,0.00041205,120]
[423403320,1780084797000,-500.0,0.00041205,120]
[423403321,1780084797000,-500.0,0.00041205,120]
[423403322,1780084797000,-500.0,0.00041205,120]
[423403323,1780084797000,-500.0,0.00041205,120]
[423403325,1780084797000,-500.0,0.00041205,120]
[423403324,1780084797000,-500.0,0.00041205,120]
[423403327,1780084797000,-503.85,0.00041205,120]
[423403329,1780084797000,-500.0,0.00041205,120]
[423403330,1780084797000,-500.0,0.00041205,120]
[423403331,1780084797000,-500.0,0.00041205,120]
[423403332,1780084797000,-500.0,0.00041205,120]
[423403333,1780084797000,-500.0,0.00041205,120]
[423403334,1780084797000,-500.0,0.00041205,120]
[423403335,1780084797000,-500.0,0.00041205,120]
[423403328,1780084797000,-500.0,0.00041205,120]
[423403336,1780084798000,-500.0,0.00041205,120]
[423403337,1780084798000,-500.0,0.00041205,120]
[423403338,1780084798000,-500.0,0.00041205,120]
[423403339,1780084798000,-590.28,0.00041205,120]
[423403340,1780084798000,-500.0,0.00041205,120]
[423403341,1780084798000,-500.0,0.00041205,120]
[423403342,1780084798000,-500.0,0.00041205,120]
[423403343,1780084798000,-500.0,0.00041205,120]
[423403344,1780084798000,-500.0,0.00041205,120]
[423403345,1780084798000,-500.0,0.00041205,120]
[423403346,1780084798000,-500.0,0.00041205,120]
[423403347,1780084798000,-500.0,0.00041205,120]
[423403348,1780084798000,-500.0,0.00041205,120]
[423403349,1780084798000,-227.71823134,0.00041205,120]
[423403350,1780084798000,-500.0,0.00041205,120]
[423403351,1780084798000,-500.0,0.00041205,120]
[423403352,1780084799000,-500.0,0.00041205,120]
[423403355,1780084799000,-500.0,0.00041205,120]
[423403354,1780084799000,-500.0,0.00041205,120]
[423403356,1780084799000,-500.0,0.00041205,120]
[423403357,1780084799000,-500.0,0.00041205,120]
[423403358,1780084799000,-500.0,0.00041205,120]
[423403359,1780084799000,-233.75838999,0.00041205,120]
[423403353,1780084799000,-500.0,0.00041205,120]
[423403361,1780084799000,-564.57226722,0.00041205,120]
[423403362,1780084799000,-500.0,0.00041205,120]
[423403363,1780084799000,-500.0,0.00041205,120]
[423403364,1780084799000,-1013.99,0.00041205,120]
[423403365,1780084799000,-500.0,0.00041205,120]
[423403366,1780084799000,-500.0,0.00041205,120]
[423403367,1780084799000,-500.0,0.00041205,120]
[423403360,1780084799000,-512.21,0.00041205,120]
[423403369,1780084800000,-500.0,0.00041205,120]
[423403370,1780084800000,-500.0,0.00041205,120]
[423403371,1780084800000,-557.51042538,0.00041205,120]
[423403372,1780084800000,-500.0,0.00041205,120]
[423403373,1780084800000,-5959.28,0.00041205,120]
[423403374,1780084800000,-500.0,0.00041205,120]
[423403368,1780084800000,-511.78906391,0.00041205,120]
[423403376,1780084800000,-500.0,0.00041205,120]
[423403377,1780084800000,-500.0,0.00041205,120]
[423403378,1780084800000,-500.0,0.00041205,120]
[423403380,1780084800000,-500.0,0.00041205,120]
[423403379,1780084800000,-500.0,0.00041205,120]
[423403381,1780084800000,-500.0,0.00041205,120]
[423403382,1780084800000,-500.0,0.00041205,120]
[423403375,1780084800000,-619.17684445,0.00041205,120]
[423403383,1780084801000,-500.0,0.00041205,120]
[423403384,1780084801000,-500.0,0.00041205,120]
[423403385,1780084801000,-500.0,0.00041205,120]
[423403386,1780084801000,-500.0,0.00041205,120]
[423403387,1780084801000,-500.0,0.00041205,120]
[423403388,1780084801000,-500.0,0.00041205,120]
[423403389,1780084801000,-1273.89,0.00041205,120]
[423403390,1780084801000,-500.0,0.00041205,120]
[423403391,1780084801000,-500.0,0.00041205,120]
[423403393,1780084801000,-3812.9034,0.00041205,120]
[423403394,1780084801000,-3812.9034,0.00041205,120]
[423403395,1780084801000,-3812.9034,0.00041205,120]
[423403397,1780084801000,-1893.11,0.00041205,120]
[423403396,1780084801000,-300.0,0.00041205,120]
[423403392,1780084801000,-500.0,0.00041205,120]
[423403404,1780084802000,-1000.0,0.00041205,30]
[423403399,1780084802000,-500.0,0.00041205,120]
[423403401,1780084802000,-500.0,0.00041205,120]
[423403403,1780084802000,-1000.0,0.00041205,30]
[423403402,1780084802000,-500.0,0.00041205,120]
[423403405,1780084802000,-500.0,0.00041205,120]
[423403398,1780084802000,-500.0,0.00041205,120]
[423403408,1780084802000,-1183.79,0.00041205,120]
[423403406,1780084802000,-1000.0,0.00041205,120]
[423403412,1780084802000,-3885.639872,0.00041205,120]
[423403411,1780084802000,-31570.342261,0.00041205,120]
[423403400,1780084802000,-500.0,0.00041205,120]
[423403410,1780084802000,-1863.935646,0.00041205,120]
[423403409,1780084802000,-1863.935647,0.00041205,120]
[423403407,1780084802000,-500.0,0.00041205,120]
[423403413,1780084803000,-1002.77,0.00041205,120]
[423403414,1780084803000,-1000.0,0.00041205,120]
[423403415,1780084803000,-500.0,0.00041205,120]
[423403416,1780084803000,-1865.36488656,0.00041231,30]
[423403417,1780084803000,-500.0,0.00041291,60]
[423403419,1780084803000,-500.0,0.00041315,120]
[423403418,1780084803000,-500.0,0.00041315,120]
[423403421,1780084803000,-500.0,0.00041315,120]
[423403423,1780084803000,-504.38,0.00041315,120]
[423403422,1780084803000,-500.0,0.00041315,120]
[423403424,1780084803000,-500.0,0.00041315,120]
[423403426,1780084803000,-1015.95,0.00041315,120]
[423403425,1780084803000,-500.0,0.00041315,120]
[423403420,1780084803000,-500.0,0.00041315,120]
[423403432,1780084804000,-500.0,0.00041315,120]
[423403427,1780084804000,-500.0,0.00041315,120]
[423403428,1780084804000,-500.0,0.00041315,120]
[423403429,1780084804000,-1042.81,0.00041315,120]
[423403430,1780084804000,-611.5,0.00041315,120]
[423403431,1780084804000,-635.66,0.00041315,120]
[423403433,1780084804000,-836.03,0.00041315,120]
[423403440,1780084804000,-352.96708581,0.00041315,120]
[423403435,1780084804000,-500.0,0.00041315,120]
[423403436,1780084804000,-500.0,0.00041315,120]
[423403437,1780084804000,-500.0,0.00041315,120]
[423403438,1780084804000,-500.0,0.00041315,120]
[423403439,1780084804000,-500.0,0.00041315,120]
[423403441,1780084804000,-1171.69,0.00041315,120]
[423403442,1780084804000,-500.0,0.00041315,120]
[423403434,1780084804000,-806.76,0.00041315,120]
[423403447,1780084805000,-1101.3,0.00041315,120]
[423403443,1780084805000,-500.0,0.00041315,120]
[423403444,1780084805000,-608.12,0.00041315,120]
[423403445,1780084805000,-1221.98,0.00041315,120]
[423403446,1780084805000,-500.0,0.00041315,120]
[423403448,1780084805000,-500.0,0.00041315,120]
[423403455,1780084805000,-860.62,0.00041315,120]
[423403450,1780084805000,-500.0,0.00041315,120]
[423403451,1780084805000,-500.0,0.00041315,120]
[423403452,1780084805000,-525.35,0.00041315,120]
[423403453,1780084805000,-500.0,0.00041315,120]
[423403456,1780084805000,-500.0,0.00041315,120]
[423403454,1780084805000,-667.1,0.00041315,120]
[423403449,1780084805000,-1588.59,0.00041315,120]
[423403457,1780084806000,-950.29,0.00041315,120]
[423403458,1780084806000,-500.0,0.00041315,120]
[423403459,1780084806000,-1248.29,0.00041315,120]
[423403460,1780084806000,-500.0,0.00041315,120]
[423403461,1780084806000,-500.0,0.00041315,120]
[423403462,1780084806000,-500.0,0.00041315,120]
[423403463,1780084806000,-500.0,0.00041315,120]
[423403464,1780084806000,-500.0,0.00041315,120]
[423403466,1780084806000,-500.0,0.00041315,120]
[423403467,1780084806000,-500.0,0.00041315,120]
[423403468,1780084806000,-500.0,0.00041315,120]
[423403469,1780084806000,-500.0,0.00041315,120]
[423403470,1780084806000,-500.0,0.00041315,120]
[423403472,1780084806000,-500.0,0.00041315,120]
[423403471,1780084806000,-500.0,0.00041315,120]
[423403465,1780084806000,-1124.22,0.00041315,120]
[423403477,1780084807000,-500.0,0.00041315,120]
[423403473,1780084807000,-915.18,0.00041315,120]
[423403474,1780084807000,-500.0,0.00041315,120]
[423403475,1780084807000,-500.0,0.00041315,120]
[423403476,1780084807000,-500.0,0.00041315,120]
[423403478,1780084807000,-1834.02,0.00041315,120]
[423403479,1780084807000,-500.0,0.00041315,120]
[423403480,1780084807000,-500.0,0.00041315,120]
[423403481,1780084807000,-755.09,0.00041315,120]
[423403482,1780084807000,-500.0,0.00041315,120]
[423403484,1780084807000,-500.0,0.00041315,120]
[423403483,1780084807000,-500.0,0.00041315,120]
[423403485,1780084807000,-1397.84,0.00041315,120]
[423403486,1780084807000,-500.0,0.00041315,120]
[423403487,1780084807000,-1399.7,0.00041315,120]
[423403488,1780084808000,-500.0,0.00041315,120]
[423403489,1780084808000,-500.0,0.00041315,120]
[423403490,1780084808000,-500.0,0.00041315,30]
[423403491,1780084808000,-500.0,0.00041315,120]
[423403492,1780084808000,-2907.55,0.00041315,120]
[423403493,1780084808000,-1178.65,0.00041315,120]
[423403494,1780084808000,-500.0,0.00041315,120]
[423403495,1780084808000,-500.0,0.00041315,120]
[423403496,1780084808000,-500.0,0.00041315,120]
[423403497,1780084808000,-500.0,0.00041315,120]
[423403499,1780084808000,-719.37,0.00041315,30]
[423403501,1780084808000,-500.0,0.00041315,120]
[423403500,1780084808000,-1446.34,0.00041315,120]
[423403502,1780084808000,-500.0,0.00041315,120]
[423403498,1780084808000,-500.0,0.00041315,120]
[423403507,1780084809000,-500.0,0.00041315,120]
[423403506,1780084809000,-1814.2,0.00041315,120]
[423403505,1780084809000,-500.0,0.00041315,120]
[423403504,1780084809000,-704.87,0.00041315,120]
[423403509,1780084809000,-500.0,0.00041315,120]
[423403503,1780084809000,-1182.3,0.00041315,120]
[423403510,1780084809000,-500.0,0.00041315,120]
[423403508,1780084809000,-500.0,0.00041315,120]
[423403511,1780084809000,-1540.81,0.00041315,120]
[423403518,1780084809000,-901.75,0.00041315,120]
[423403513,1780084809000,-500.0,0.00041315,120]
[423403515,1780084809000,-324.70194524,0.00041315,120]
[423403514,1780084809000,-500.0,0.00041315,120]
[423403517,1780084809000,-1561.96,0.00041315,120]
[423403516,1780084809000,-2242.5,0.00041315,120]
[423403512,1780084809000,-425.15451118,0.00041315,120]
[423403520,1780084810000,-500.0,0.00041315,120]
[423403519,1780084810000,-1873.4,0.00041315,120]
[423403521,1780084810000,-500.0,0.00041315,120]
[423403522,1780084810000,-500.0,0.00041315,120]
[423403523,1780084810000,-500.0,0.00041315,120]
[423403524,1780084810000,-604.88128235,0.00041315,120]
[423403525,1780084810000,-500.0,0.00041315,120]
[423403526,1780084810000,-500.0,0.00041315,90]
[423403527,1780084810000,-980.49,0.00041315,120]
[423403528,1780084810000,-500.0,0.00041315,120]
[423403529,1780084811000,-500.0,0.00041315,60]
[423403530,1780084811000,-772.14,0.00041315,120]
[423403531,1780084811000,-500.0,0.00041315,120]
[423403532,1780084811000,-3392.34,0.00041315,120]
[423403533,1780084811000,-820.01,0.00041315,120]
[423403534,1780084811000,-500.0,0.00041315,120]
[423403536,1780084811000,-500.0,0.00041315,120]
[423403543,1780084811000,-655.38,0.00041315,120]
[423403537,1780084811000,-500.0,0.00041315,120]
[423403538,1780084811000,-500.0,0.00041315,120]
[423403539,1780084811000,-500.0,0.00041315,120]
[423403540,1780084811000,-587.91,0.00041315,120]
[423403541,1780084811000,-211.05613572,0.00041315,120]
[423403542,1780084811000,-917.29,0.00041315,120]
[423403535,1780084811000,-500.0,0.00041315,120]
[423403548,1780084812000,-500.0,0.00041315,120]
[423403547,1780084812000,-1095.92,0.00041315,120]
[423403549,1780084812000,-295.62330368,0.00041315,120]
[423403545,1780084812000,-561.16,0.00041315,120]
[423403544,1780084812000,-500.0,0.00041315,120]
[423403546,1780084812000,-845.37,0.00041315,120]
[423403550,1780084812000,-500.0,0.00041315,120]
[423403551,1780084812000,-647.13,0.00041315,120]
[423403552,1780084812000,-500.0,0.00041315,120]
[423403553,1780084812000,-500.0,0.00041315,120]
[423403554,1780084812000,-500.0,0.00041315,120]
[423403555,1780084812000,-500.0,0.00041315,120]
[423403556,1780084812000,-616.24103359,0.00041315,120]
[423403557,1780084812000,-1076.54,0.00041315,120]
[423403558,1780084812000,-1426.45,0.00041315,120]
[423403559,1780084813000,-500.0,0.00041315,120]
[423403560,1780084813000,-1395.21,0.00041315,120]
[423403561,1780084813000,-1530.88,0.00041315,120]
[423403562,1780084813000,-500.0,0.00041315,120]
[423403563,1780084813000,-349.31899623,0.00041315,120]
[423403564,1780084813000,-1177.89,0.00041315,120]
[423403565,1780084813000,-500.0,0.00041315,120]
[423403566,1780084813000,-2512.03,0.00041315,120]
[423403567,1780084813000,-1576.36,0.00041315,120]
[423403568,1780084813000,-1034.39,0.00041315,120]
[423403569,1780084813000,-500.0,0.00041315,120]
[423403570,1780084813000,-500.0,0.00041315,120]
[423403572,1780084813000,-500.0,0.00041315,120]
[423403571,1780084813000,-500.0,0.00041315,120]
[423403573,1780084813000,-621.01,0.00041315,120]
[423403574,1780084813000,-500.0,0.00041315,120]
[423403575,1780084814000,-500.0,0.00041315,120]
[423403576,1780084814000,-500.0,0.00041315,120]
[423403578,1780084814000,-500.0,0.00041315,120]
[423403577,1780084814000,-509.64,0.00041315,120]
[423403580,1780084814000,-754.91,0.00041315,120]
[423403579,1780084814000,-500.0,0.00041315,120]
[423403581,1780084814000,-500.0,0.00041315,120]
[423403590,1780084814000,-500.0,0.00041315,120]
[423403583,1780084814000,-1276.13,0.00041315,120]
[423403584,1780084814000,-1497.67,0.00041315,120]
[423403585,1780084814000,-500.0,0.00041315,120]
[423403586,1780084814000,-1107.45,0.00041315,120]
[423403587,1780084814000,-915.69,0.00041315,120]
[423403588,1780084814000,-514.01,0.00041315,120]
[423403589,1780084814000,-500.0,0.00041315,120]
[423403582,1780084814000,-500.0,0.00041315,120]
[423403596,1780084815000,-571.39,0.00041315,120]
[423403591,1780084815000,-500.0,0.00041315,120]
[423403592,1780084815000,-500.0,0.00041315,120]
[423403594,1780084815000,-500.0,0.00041315,120]
[423403593,1780084815000,-500.0,0.00041315,120]
[423403595,1780084815000,-500.0,0.00041315,120]
[423403597,1780084815000,-500.0,0.00041315,120]
[423403605,1780084815000,-647.11,0.00041315,120]
[423403600,1780084815000,-500.0,0.00041315,120]
[423403599,1780084815000,-2254.44,0.00041315,120]
[423403601,1780084815000,-500.0,0.00041315,120]
[423403602,1780084815000,-500.0,0.00041315,120]
[423403603,1780084815000,-2175.95,0.00041315,120]
[423403604,1780084815000,-500.0,0.00041315,120]
[423403598,1780084815000,-500.0,0.00041315,120]
[423403606,1780084816000,-1378.28,0.00041315,120]
[423403608,1780084816000,-2575.44,0.00041315,120]
[423403607,1780084816000,-500.0,0.00041315,120]
[423403609,1780084816000,-500.0,0.00041315,120]
[423403610,1780084816000,-1222.88,0.00041315,120]
[423403611,1780084816000,-500.0,0.00041315,120]
[423403612,1780084816000,-500.0,0.00041315,120]
[423403614,1780084816000,-500.0,0.00041315,120]
[423403615,1780084816000,-500.0,0.00041315,120]
[423403616,1780084816000,-1213.07,0.00041315,120]
[423403617,1780084816000,-1619.99,0.00041315,120]
[423403618,1780084816000,-500.0,0.00041315,120]
[423403619,1780084816000,-1467.68,0.00041315,120]
[423403621,1780084816000,-500.0,0.00041315,120]
[423403620,1780084816000,-500.0,0.00041315,120]
[423403613,1780084816000,-500.0,0.00041315,120]
[423403627,1780084817000,-500.0,0.00041315,120]
[423403622,1780084817000,-1038.9,0.00041315,120]
[423403623,1780084817000,-500.0,0.00041315,120]
[423403624,1780084817000,-505.79,0.00041315,120]
[423403625,1780084817000,-500.0,0.00041315,120]
[423403626,1780084817000,-500.0,0.00041315,120]
[423403628,1780084817000,-500.0,0.00041315,120]
[423403637,1780084817000,-500.0,0.00041315,120]
[423403630,1780084817000,-500.0,0.00041315,120]
[423403636,1780084817000,-564.8,0.00041315,120]
[423403635,1780084817000,-500.0,0.00041315,120]
[423403634,1780084817000,-2930.35,0.00041315,120]
[423403629,1780084817000,-988.32,0.00041315,120]
[423403631,1780084817000,-500.0,0.00041315,120]
[423403632,1780084817000,-500.0,0.00041315,120]
[423403633,1780084817000,-500.0,0.00041315,120]
[423403638,1780084818000,-2752.11,0.00041315,120]
[423403639,1780084818000,-500.0,0.00041315,120]
[423403640,1780084818000,-528.32,0.00041315,120]
[423403641,1780084818000,-500.0,0.00041315,120]
[423403644,1780084818000,-500.0,0.00041315,120]
[423403643,1780084818000,-500.0,0.00041315,120]
[423403642,1780084818000,-1534.3,0.00041315,120]
[423403645,1780084818000,-2094.38,0.00041315,120]
[423403647,1780084818000,-523.89,0.00041315,120]
[423403649,1780084818000,-757.58,0.00041315,120]
[423403648,1780084818000,-500.0,0.00041315,120]
[423403650,1780084818000,-652.06,0.00041315,120]
[423403652,1780084818000,-1376.62,0.00041315,120]
[423403651,1780084818000,-500.0,0.00041315,120]
[423403646,1780084818000,-810.86,0.00041315,120]
[423403653,1780084819000,-500.0,0.00041315,120]
[423403654,1780084819000,-500.0,0.00041315,120]
[423403655,1780084819000,-1629.33,0.00041315,120]
[423403656,1780084819000,-1215.81,0.00041315,120]
[423403657,1780084819000,-729.54,0.00041315,120]
[423403658,1780084819000,-500.0,0.00041315,120]
[423403659,1780084819000,-500.0,0.00041315,120]
[423403660,1780084819000,-500.0,0.00041315,120]
[423403663,1780084819000,-500.0,0.00041315,120]
[423403662,1780084819000,-500.0,0.00041315,120]
[423403664,1780084819000,-500.0,0.00041315,120]
[423403665,1780084819000,-1443.76,0.00041315,120]
[423403667,1780084819000,-500.0,0.00041315,120]
[423403666,1780084819000,-500.0,0.00041315,120]
[423403668,1780084819000,-500.0,0.00041315,60]
[423403661,1780084819000,-2041.14,0.00041315,120]
[423403670,1780084820000,-500.0,0.00041315,120]
[423403669,1780084820000,-1855.56,0.00041315,120]
[423403671,1780084820000,-661.05,0.00041315,120]
[423403673,1780084820000,-500.0,0.00041315,120]
[423403672,1780084820000,-500.0,0.00041315,120]
[423403674,1780084820000,-1067.1,0.00041315,120]
[423403676,1780084820000,-500.0,0.00041315,120]
[423403675,1780084820000,-500.0,0.00041315,120]
[423403678,1780084820000,-500.0,0.00041315,120]
[423403679,1780084820000,-500.0,0.00041315,120]
[423403681,1780084820000,-500.0,0.00041315,120]
[423403680,1780084820000,-500.0,0.00041315,120]
[423403682,1780084820000,-616.36,0.00041315,120]
[423403683,1780084820000,-500.0,0.00041315,120]
[423403684,1780084820000,-567.37,0.00041315,120]
[423403677,1780084820000,-500.0,0.00041315,120]
[423403689,1780084821000,-500.0,0.00041315,120]
[423403685,1780084821000,-500.0,0.00041315,120]
[423403687,1780084821000,-1514.0,0.00041315,120]
[423403686,1780084821000,-1922.59,0.00041315,120]
[423403688,1780084821000,-854.37,0.00041315,120]
[423403690,1780084821000,-500.0,0.00041315,120]
[423403692,1780084821000,-500.0,0.00041315,120]
[423403694,1780084821000,-500.0,0.00041315,120]
[423403693,1780084821000,-500.0,0.00041315,120]
[423403699,1780084821000,-500.0,0.00041315,120]
[423403698,1780084821000,-500.0,0.00041315,120]
[423403697,1780084821000,-500.0,0.00041315,120]
[423403691,1780084821000,-500.0,0.00041315,120]
[423403695,1780084821000,-509.44,0.00041315,120]
[423403700,1780084821000,-556.650205,0.00041315,120]
[423403696,1780084821000,-500.0,0.00041315,120]
[423403701,1780084822000,-500.0,0.00041315,120]
[423403702,1780084822000,-534.28,0.00041315,120]
[423403703,1780084822000,-1096.64,0.00041315,120]
[423403705,1780084822000,-500.0,0.00041315,120]
[423403706,1780084822000,-500.0,0.00041315,120]
[423403707,1780084822000,-500.0,0.00041315,120]
[423403704,1780084822000,-500.0,0.00041315,120]
[423403710,1780084822000,-1208.52,0.00041315,120]
[423403709,1780084822000,-1336.22,0.00041315,120]
[423403711,1780084822000,-500.0,0.00041315,120]
[423403712,1780084822000,-745.76,0.00041315,120]
[423403713,1780084822000,-726.72,0.00041315,120]
[423403714,1780084822000,-500.0,0.00041315,120]
[423403715,1780084822000,-570.29,0.00041315,120]
[423403708,1780084822000,-500.0,0.00041315,120]
[423403721,1780084823000,-500.0,0.00041315,120]
[423403717,1780084823000,-1281.83,0.00041315,60]
[423403716,1780084823000,-500.0,0.00041315,120]
[423403718,1780084823000,-500.0,0.00041315,120]
[423403719,1780084823000,-500.0,0.00041315,120]
[423403722,1780084823000,-500.0,0.00041315,120]
[423403723,1780084823000,-500.0,0.00041315,120]
[423403720,1780084823000,-500.0,0.00041315,120]
[423403725,1780084823000,-500.0,0.00041315,120]
[423403727,1780084823000,-500.0,0.00041315,120]
[423403731,1780084823000,-502.01591045,0.00041315,120]
[423403726,1780084823000,-879.08,0.00041315,120]
[423403728,1780084823000,-500.0,0.00041315,120]
[423403730,1780084823000,-609.29,0.00041315,120]
[423403729,1780084823000,-1285.51,0.00041315,120]
[423403724,1780084823000,-500.0,0.00041315,120]
[423403732,1780084824000,-933.56,0.00041315,120]
[423403733,1780084824000,-769.78,0.00041315,120]
[423403734,1780084824000,-500.0,0.00041315,120]
[423403735,1780084824000,-1243.25,0.00041315,120]
[423403736,1780084824000,-665.8,0.00041315,120]
[423403737,1780084824000,-500.0,0.00041315,120]
[423403738,1780084824000,-500.0,0.00041315,120]
[423403739,1780084824000,-637.39,0.00041315,120]
[423403741,1780084824000,-597.75174732,0.00041315,120]
[423403742,1780084824000,-927.5,0.00041315,120]
[423403743,1780084824000,-500.0,0.00041315,120]
[423403744,1780084824000,-500.0,0.00041315,120]
[423403745,1780084824000,-545.76,0.00041315,120]
[423403746,1780084824000,-500.0,0.00041315,120]
[423403747,1780084824000,-864.63,0.00041315,120]
[423403740,1780084824000,-1063.17,0.00041315,120]
[423403754,1780084825000,-500.0,0.00041315,120]
[423403748,1780084825000,-500.0,0.00041315,120]
[423403751,1780084825000,-586.79,0.00041315,120]
[423403750,1780084825000,-500.0,0.00041315,120]
[423403752,1780084825000,-500.0,0.00041315,120]
[423403753,1780084825000,-750.51,0.00041315,120]
[423403755,1780084825000,-1172.38,0.00041315,120]
[423403749,1780084825000,-812.35,0.00041315,120]
[423403757,1780084825000,-500.0,0.00041315,120]
[423403759,1780084825000,-2146.7,0.00041315,120]
[423403758,1780084825000,-1849.61,0.00041315,120]